Workbook

Sheet Lízing kalkuláció
B1: Arthur Bergmann Lízing Zrt. - lakáslízing kalkulátor | F1: Használati útmutató:
B2: IGÉNYELT LÍZING PARAMÉTEREI | F2: A kékkel keretezett fehér cellák szerkeszthetők. FINANSZÍROZÁS ÖSSZEGÉNEK MEGADÁSA: A saját erő %-os VAGY Ft összegének megadásával lehetséges. Ha mindkét mező ki van töltve, akkor a %-os saját erő alapján számítja a finanszírozott összeget és piros felkiáltójel jelzi, ha az igényelt %-os érték nincs összhangban az igényelt Ft összeggel. VISSZLÍZING: X-el jelölendő. Visszlízing esetén az ingatlan vételára = finanszírozott összeg, a saját erőt üresen kell hagyni, vagy 0-ra állítani. Ha a megadott érték piros, akkor nem felel meg a terméknek, ekkor az ajánlat automatikusan a termékleírás szerinti korlátot tartalmazza az "AJÁNLAT PARAMÉTEREI" alatt. Ha a "Havi lízingdíj" mellett a "Kalkuláció szükséges!" felirat látható, meg kell nyomni a "Kalkuláció!" gombot.
B3: VISSZLÍZING?
B4: Ingatlan vételára | D4: 95000000
B5: Saját erő%
B6: Saját erő Ft | D6: 20000000 | E6: ='""'!E6 -> 
B8: Igényelt finanszírozás összege | D8: ='""'!D8 -> 75000000
B10: Futamidő (év) | D10: 5
B11: Maradványérték % | D11: 0.15
B12: Maradványérték Ft | D12: ='""'!D12 -> 11250000
B14: Arthur Bergmann Lízing Zrt.
B15: LAKÁSLÍZING AJÁNLAT PARAMÉTEREI | E15: Termékleírásban szereplő korlátok:
B16: Ingatlan vételára | D16: ='""'!D16 -> 95000000 | E16: minimum 14.300.000 Ft
B17: Saját erő % | D17: ='""'!D17 -> 0.3 | E17: minimum 30%, visszlízingnél 0
B18: Saját erő Ft | D18: ='""'!D18 -> 28500000
B19: Lízing finanszírozás összege | D19: ='""'!D19 -> 66500000 | E19: minimum 10.000.000 Ft
B20: Maradványérték % | D20: ='""'!D20 -> 0.15 | E20: 10 évig maximum 30%, 15 évig maximum 20%, 20 évig maximum 10%
B21: Maradványérték összege | D21: ='""'!D21 -> 9975000
B22: Éves kamatláb | D22: ='""'!D22 -> 0.0825 | E22: ='kalkulációs feltételek'!A2 -> 2020-12-30 | F22: -án érvényes 1 havi BUBOR alapján
B23: Futamidő években | D23: ='""'!D23 -> 5
B24: Tervezett folyósítás | D24: ='""'!D24 -> 2021-07-22 | E24: ajánlat érvényességi dátuma
B26: LÍZING ÁTTEKINTŐ
B27: Havi lízingdíj | D27: =D38 -> 173408.6228 | E27: =IF('segéd'!B3=0,"","Kalkuláció szükséges!") -> Kalkuláció szükséges!
B28: Törlesztések száma | D28: ='""'!D28 -> 60
B29: Kamat összesen | D29: ='""'!D29 -> 31257082.21
B30: Futamidő alatt megfizetett lízingdíjak összege | D30: ='""'!D30 -> 20379517.37
B31: Induláskor fizetendő díjak:
B32: Szerződéskötés díj | D32: ='""'!D31 -> 1330000 | E32: 2%, alapja a finanszírozási összeg
B33: Szerződéskötéskor fizetendő illeték | D33: ='""'!D32 -> 1900000 | E33: 2%, alapja az ingatlan vételára
B34: Ügyvédi díj | D34: ='""'!D33 -> 475000 | E34: 0,5%, minimum 100.000 Ft, alapja az ingatlan vételára
B35: Értékbecslés és közokirat díja egyedi díjszabás alapján
B37: Esedékesség dátuma | C37: Nyitó tőketartozás összege | D37: Esedékes lízingdíj (és maradványérték) | E37: Lízingdíj tőkerésze | F37: Lízingdíjban foglalt kamat összege | G37: Záró tőketartozás a befizetést követően
A38: ='""'!A38 -> 1 | B38: ='""'!B38 -> 2021-08-15 | C38: ='""'!C38 -> 66500000 | D38: 173408.6228 | E38: ='""'!E38 -> -187070.2283 | F38: ='""'!F38 -> 360478.8512 | G38: ='""'!G38 -> 66687070.23
A39: ='""'!A39 -> 2 | B39: ='""'!B39 -> 2021-09-15 | C39: ='""'!C39 -> 66687070.23 | D39: ='""'!D39 -> 173408.6228 | E39: ='""'!E39 -> -293888.3649 | F39: ='""'!F39 -> 467296.9877 | G39: ='""'!G39 -> 66980958.59
A40: ='""'!A40 -> 3 | B40: ='""'!B40 -> 2021-10-15 | C40: ='""'!C40 -> 66980958.59 | D40: ='""'!D40 -> 173408.6228 | E40: ='""'!E40 -> -280755.9916 | F40: ='""'!F40 -> 454164.6144 | G40: ='""'!G40 -> 67261714.58
A41: ='""'!A41 -> 4 | B41: ='""'!B41 -> 2021-11-15 | C41: ='""'!C41 -> 67261714.58 | D41: ='""'!D41 -> 173408.6228 | E41: ='""'!E41 -> -297915.0761 | F41: ='""'!F41 -> 471323.699 | G41: ='""'!G41 -> 67559629.66
A42: ='""'!A42 -> 5 | B42: ='""'!B42 -> 2021-12-15 | C42: ='""'!C42 -> 67559629.66 | D42: ='""'!D42 -> 173408.6228 | E42: ='""'!E42 -> -284679.6727 | F42: ='""'!F42 -> 458088.2956 | G42: ='""'!G42 -> 67844309.33
A43: ='""'!A43 -> 6 | B43: ='""'!B43 -> 2022-01-15 | C43: ='""'!C43 -> 67844309.33 | D43: ='""'!D43 -> 173408.6228 | E43: ='""'!E43 -> -301997.4983 | F43: ='""'!F43 -> 475406.1211 | G43: ='""'!G43 -> 68146306.83
A44: ='""'!A44 -> 7 | B44: ='""'!B44 -> 2022-02-15 | C44: ='""'!C44 -> 68146306.83 | D44: ='""'!D44 -> 173408.6228 | E44: ='""'!E44 -> -304113.6884 | F44: ='""'!F44 -> 477522.3113 | G44: ='""'!G44 -> 68450420.52
A45: ='""'!A45 -> 8 | B45: ='""'!B45 -> 2022-03-15 | C45: ='""'!C45 -> 68450420.52 | D45: ='""'!D45 -> 173408.6228 | E45: ='""'!E45 -> -259680.1239 | F45: ='""'!F45 -> 433088.7467 | G45: ='""'!G45 -> 68710100.64
A46: ='""'!A46 -> 9 | B46: ='""'!B46 -> 2022-04-15 | C46: ='""'!C46 -> 68710100.64 | D46: ='""'!D46 -> 173408.6228 | E46: ='""'!E46 -> -308064.3666 | F46: ='""'!F46 -> 481472.9894 | G46: ='""'!G46 -> 69018165.01
A47: ='""'!A47 -> 10 | B47: ='""'!B47 -> 2022-05-15 | C47: ='""'!C47 -> 69018165.01 | D47: ='""'!D47 -> 173408.6228 | E47: ='""'!E47 -> -294569.2766 | F47: ='""'!F47 -> 467977.8994 | G47: ='""'!G47 -> 69312734.29
A48: ='""'!A48 -> 11 | B48: ='""'!B48 -> 2022-06-15 | C48: ='""'!C48 -> 69312734.29 | D48: ='""'!D48 -> 173408.6228 | E48: ='""'!E48 -> -312287.2074 | F48: ='""'!F48 -> 485695.8303 | G48: ='""'!G48 -> 69625021.49
A49: ='""'!A49 -> 12 | B49: ='""'!B49 -> 2022-07-15 | C49: ='""'!C49 -> 69625021.49 | D49: ='""'!D49 -> 173408.6228 | E49: ='""'!E49 -> -298684.069 | F49: ='""'!F49 -> 472092.6918 | G49: ='""'!G49 -> 69923705.56
A50: ='""'!A50 -> 13 | B50: ='""'!B50 -> 2022-08-15 | C50: ='""'!C50 -> 69923705.56 | D50: ='""'!D50 -> 173408.6228 | E50: ='""'!E50 -> -316568.4727 | F50: ='""'!F50 -> 489977.0955 | G50: ='""'!G50 -> 70240274.04
A51: ='""'!A51 -> 14 | B51: ='""'!B51 -> 2022-09-15 | C51: ='""'!C51 -> 70240274.04 | D51: ='""'!D51 -> 173408.6228 | E51: ='""'!E51 -> -318786.7662 | F51: ='""'!F51 -> 492195.389 | G51: ='""'!G51 -> 70559060.8
A52: ='""'!A52 -> 15 | B52: ='""'!B52 -> 2022-10-15 | C52: ='""'!C52 -> 70559060.8 | D52: ='""'!D52 -> 173408.6228 | E52: ='""'!E52 -> -305017.3256 | F52: ='""'!F52 -> 478425.9485 | G52: ='""'!G52 -> 70864078.13
A53: ='""'!A53 -> 16 | B53: ='""'!B53 -> 2022-11-15 | C53: ='""'!C53 -> 70864078.13 | D53: ='""'!D53 -> 173408.6228 | E53: ='""'!E53 -> -323157.955 | F53: ='""'!F53 -> 496566.5778 | G53: ='""'!G53 -> 71187236.08
A54: ='""'!A54 -> 17 | B54: ='""'!B54 -> 2022-12-15 | C54: ='""'!C54 -> 71187236.08 | D54: ='""'!D54 -> 173408.6228 | E54: ='""'!E54 -> -309276.6702 | F54: ='""'!F54 -> 482685.2931 | G54: ='""'!G54 -> 71496512.75
A55: ='""'!A55 -> 18 | B55: ='""'!B55 -> 2023-01-15 | C55: ='""'!C55 -> 71496512.75 | D55: ='""'!D55 -> 173408.6228 | E55: ='""'!E55 -> -327589.6206 | F55: ='""'!F55 -> 500998.2434 | G55: ='""'!G55 -> 71824102.37
A56: ='""'!A56 -> 19 | B56: ='""'!B56 -> 2023-02-15 | C56: ='""'!C56 -> 71824102.37 | D56: ='""'!D56 -> 173408.6228 | E56: ='""'!E56 -> -329885.1427 | F56: ='""'!F56 -> 503293.7655 | G56: ='""'!G56 -> 72153987.52
A57: ='""'!A57 -> 20 | B57: ='""'!B57 -> 2023-03-15 | C57: ='""'!C57 -> 72153987.52 | D57: ='""'!D57 -> 173408.6228 | E57: ='""'!E57 -> -283112.7511 | F57: ='""'!F57 -> 456521.374 | G57: ='""'!G57 -> 72437100.27
A58: ='""'!A58 -> 21 | B58: ='""'!B58 -> 2023-04-15 | C58: ='""'!C58 -> 72437100.27 | D58: ='""'!D58 -> 173408.6228 | E58: ='""'!E58 -> -334180.6091 | F58: ='""'!F58 -> 507589.2319 | G58: ='""'!G58 -> 72771280.88
A59: ='""'!A59 -> 22 | B59: ='""'!B59 -> 2023-05-15 | C59: ='""'!C59 -> 72771280.88 | D59: ='""'!D59 -> 173408.6228 | E59: ='""'!E59 -> -320017.2913 | F59: ='""'!F59 -> 493425.9141 | G59: ='""'!G59 -> 73091298.17
A60: ='""'!A60 -> 23 | B60: ='""'!B60 -> 2023-06-15 | C60: ='""'!C60 -> 73091298.17 | D60: ='""'!D60 -> 173408.6228 | E60: ='""'!E60 -> -338764.7767 | F60: ='""'!F60 -> 512173.3995 | G60: ='""'!G60 -> 73430062.94
A61: ='""'!A61 -> 24 | B61: ='""'!B61 -> 2023-07-15 | C61: ='""'!C61 -> 73430062.94 | D61: ='""'!D61 -> 173408.6228 | E61: ='""'!E61 -> -324484.1653 | F61: ='""'!F61 -> 497892.7881 | G61: ='""'!G61 -> 73754547.11
A62: ='""'!A62 -> 25 | B62: ='""'!B62 -> 2023-08-15 | C62: ='""'!C62 -> 73754547.11 | D62: ='""'!D62 -> 173408.6228 | E62: ='""'!E62 -> -343412.3678 | F62: ='""'!F62 -> 516820.9906 | G62: ='""'!G62 -> 74097959.48
A63: ='""'!A63 -> 26 | B63: ='""'!B63 -> 2023-09-15 | C63: ='""'!C63 -> 74097959.48 | D63: ='""'!D63 -> 173408.6228 | E63: ='""'!E63 -> -345818.7647 | F63: ='""'!F63 -> 519227.3876 | G63: ='""'!G63 -> 74443778.24
A64: ='""'!A64 -> 27 | B64: ='""'!B64 -> 2023-10-15 | C64: ='""'!C64 -> 74443778.24 | D64: ='""'!D64 -> 173408.6228 | E64: ='""'!E64 -> -331357.6653 | F64: ='""'!F64 -> 504766.2881 | G64: ='""'!G64 -> 74775135.91
A65: ='""'!A65 -> 28 | B65: ='""'!B65 -> 2023-11-15 | C65: ='""'!C65 -> 74775135.91 | D65: ='""'!D65 -> 173408.6228 | E65: ='""'!E65 -> -350563.9501 | F65: ='""'!F65 -> 523972.5729 | G65: ='""'!G65 -> 75125699.86
A66: ='""'!A66 -> 29 | B66: ='""'!B66 -> 2023-12-15 | C66: ='""'!C66 -> 75125699.86 | D66: ='""'!D66 -> 173408.6228 | E66: ='""'!E66 -> -335981.4371 | F66: ='""'!F66 -> 509390.0599 | G66: ='""'!G66 -> 75461681.3
A67: ='""'!A67 -> 30 | B67: ='""'!B67 -> 2024-01-15 | C67: ='""'!C67 -> 75461681.3 | D67: ='""'!D67 -> 173408.6228 | E67: ='""'!E67 -> -355374.7866 | F67: ='""'!F67 -> 528783.4094 | G67: ='""'!G67 -> 75817056.08
A68: ='""'!A68 -> 31 | B68: ='""'!B68 -> 2024-02-15 | C68: ='""'!C68 -> 75817056.08 | D68: ='""'!D68 -> 173408.6228 | E68: ='""'!E68 -> -357865.0079 | F68: ='""'!F68 -> 531273.6308 | G68: ='""'!G68 -> 76174921.09
A69: ='""'!A69 -> 32 | B69: ='""'!B69 -> 2024-03-15 | C69: ='""'!C69 -> 76174921.09 | D69: ='""'!D69 -> 173408.6228 | E69: ='""'!E69 -> -325822.5825 | F69: ='""'!F69 -> 499231.2054 | G69: ='""'!G69 -> 76500743.67
A70: ='""'!A70 -> 33 | B70: ='""'!B70 -> 2024-04-15 | C70: ='""'!C70 -> 76500743.67 | D70: ='""'!D70 -> 173408.6228 | E70: ='""'!E70 -> -362655.8189 | F70: ='""'!F70 -> 536064.4418 | G70: ='""'!G70 -> 76863399.49
A71: ='""'!A71 -> 34 | B71: ='""'!B71 -> 2024-05-15 | C71: ='""'!C71 -> 76863399.49 | D71: ='""'!D71 -> 173408.6228 | E71: ='""'!E71 -> -347763.9153 | F71: ='""'!F71 -> 521172.5381 | G71: ='""'!G71 -> 77211163.41
A72: ='""'!A72 -> 35 | B72: ='""'!B72 -> 2024-06-15 | C72: ='""'!C72 -> 77211163.41 | D72: ='""'!D72 -> 173408.6228 | E72: ='""'!E72 -> -367633.9504 | F72: ='""'!F72 -> 541042.5732 | G72: ='""'!G72 -> 77578797.36
A73: ='""'!A73 -> 36 | B73: ='""'!B73 -> 2024-07-15 | C73: ='""'!C73 -> 77578797.36 | D73: ='""'!D73 -> 173408.6228 | E73: ='""'!E73 -> -352614.6729 | F73: ='""'!F73 -> 526023.2957 | G73: ='""'!G73 -> 77931412.03
A74: ='""'!A74 -> 37 | B74: ='""'!B74 -> 2024-08-15 | C74: ='""'!C74 -> 77931412.03 | D74: ='""'!D74 -> 173408.6228 | E74: ='""'!E74 -> -372680.9559 | F74: ='""'!F74 -> 546089.5788 | G74: ='""'!G74 -> 78304092.99
A75: ='""'!A75 -> 38 | B75: ='""'!B75 -> 2024-09-15 | C75: ='""'!C75 -> 78304092.99 | D75: ='""'!D75 -> 173408.6228 | E75: ='""'!E75 -> -375292.447 | F75: ='""'!F75 -> 548701.0698 | G75: ='""'!G75 -> 78679385.43
A76: ='""'!A76 -> 39 | B76: ='""'!B76 -> 2024-10-15 | C76: ='""'!C76 -> 78679385.43 | D76: ='""'!D76 -> 173408.6228 | E76: ='""'!E76 -> -360077.214 | F76: ='""'!F76 -> 533485.8369 | G76: ='""'!G76 -> 79039462.65
A77: ='""'!A77 -> 40 | B77: ='""'!B77 -> 2024-11-15 | C77: ='""'!C77 -> 79039462.65 | D77: ='""'!D77 -> 173408.6228 | E77: ='""'!E77 -> -380445.4103 | F77: ='""'!F77 -> 553854.0332 | G77: ='""'!G77 -> 79419908.06
A78: ='""'!A78 -> 41 | B78: ='""'!B78 -> 2024-12-15 | C78: ='""'!C78 -> 79419908.06 | D78: ='""'!D78 -> 173408.6228 | E78: ='""'!E78 -> -365098.3302 | F78: ='""'!F78 -> 538506.953 | G78: ='""'!G78 -> 79785006.39
A79: ='""'!A79 -> 42 | B79: ='""'!B79 -> 2025-01-15 | C79: ='""'!C79 -> 79785006.39 | D79: ='""'!D79 -> 173408.6228 | E79: ='""'!E79 -> -385669.6666 | F79: ='""'!F79 -> 559078.2894 | G79: ='""'!G79 -> 80170676.05
A80: ='""'!A80 -> 43 | B80: ='""'!B80 -> 2025-02-15 | C80: ='""'!C80 -> 80170676.05 | D80: ='""'!D80 -> 173408.6228 | E80: ='""'!E80 -> -388372.1736 | F80: ='""'!F80 -> 561780.7964 | G80: ='""'!G80 -> 80559048.23
A81: ='""'!A81 -> 44 | B81: ='""'!B81 -> 2025-03-15 | C81: ='""'!C81 -> 80559048.23 | D81: ='""'!D81 -> 173408.6228 | E81: ='""'!E81 -> -336291.9308 | F81: ='""'!F81 -> 509700.5536 | G81: ='""'!G81 -> 80895340.16
A82: ='""'!A82 -> 45 | B82: ='""'!B82 -> 2025-04-15 | C82: ='""'!C82 -> 80895340.16 | D82: ='""'!D82 -> 173408.6228 | E82: ='""'!E82 -> -393450.1197 | F82: ='""'!F82 -> 566858.7426 | G82: ='""'!G82 -> 81288790.28
A83: ='""'!A83 -> 46 | B83: ='""'!B83 -> 2025-05-15 | C83: ='""'!C83 -> 81288790.28 | D83: ='""'!D83 -> 173408.6228 | E83: ='""'!E83 -> -377770.2923 | F83: ='""'!F83 -> 551178.9152 | G83: ='""'!G83 -> 81666560.57
A84: ='""'!A84 -> 47 | B84: ='""'!B84 -> 2025-06-15 | C84: ='""'!C84 -> 81666560.57 | D84: ='""'!D84 -> 173408.6228 | E84: ='""'!E84 -> -398854.3004 | F84: ='""'!F84 -> 572262.9232 | G84: ='""'!G84 -> 82065414.87
A85: ='""'!A85 -> 48 | B85: ='""'!B85 -> 2025-07-15 | C85: ='""'!C85 -> 82065414.87 | D85: ='""'!D85 -> 173408.6228 | E85: ='""'!E85 -> -383036.198 | F85: ='""'!F85 -> 556444.8208 | G85: ='""'!G85 -> 82448451.07
A86: ='""'!A86 -> 49 | B86: ='""'!B86 -> 2025-08-15 | C86: ='""'!C86 -> 82448451.07 | D86: ='""'!D86 -> 173408.6228 | E86: ='""'!E86 -> -404333.2497 | F86: ='""'!F86 -> 577741.8725 | G86: ='""'!G86 -> 82852784.32
A87: ='""'!A87 -> 50 | B87: ='""'!B87 -> 2025-09-15 | C87: ='""'!C87 -> 82852784.32 | D87: ='""'!D87 -> 173408.6228 | E87: ='""'!E87 -> -407166.5382 | F87: ='""'!F87 -> 580575.161 | G87: ='""'!G87 -> 83259950.86
A88: ='""'!A88 -> 51 | B88: ='""'!B88 -> 2025-10-15 | C88: ='""'!C88 -> 83259950.86 | D88: ='""'!D88 -> 173408.6228 | E88: ='""'!E88 -> -391135.7533 | F88: ='""'!F88 -> 564544.3761 | G88: ='""'!G88 -> 83651086.61
A89: ='""'!A89 -> 52 | B89: ='""'!B89 -> 2025-11-15 | C89: ='""'!C89 -> 83651086.61 | D89: ='""'!D89 -> 173408.6228 | E89: ='""'!E89 -> -412760.49 | F89: ='""'!F89 -> 586169.1128 | G89: ='""'!G89 -> 84063847.1
A90: ='""'!A90 -> 53 | B90: ='""'!B90 -> 2025-12-15 | C90: ='""'!C90 -> 84063847.1 | D90: ='""'!D90 -> 173408.6228 | E90: ='""'!E90 -> -396586.5744 | F90: ='""'!F90 -> 569995.1973 | G90: ='""'!G90 -> 84460433.67
A91: ='""'!A91 -> 54 | B91: ='""'!B91 -> 2026-01-15 | C91: ='""'!C91 -> 84460433.67 | D91: ='""'!D91 -> 173408.6228 | E91: ='""'!E91 -> -418431.8359 | F91: ='""'!F91 -> 591840.4588 | G91: ='""'!G91 -> 84878865.51
A92: ='""'!A92 -> 55 | B92: ='""'!B92 -> 2026-02-15 | C92: ='""'!C92 -> 84878865.51 | D92: ='""'!D92 -> 173408.6228 | E92: ='""'!E92 -> -421363.9176 | F92: ='""'!F92 -> 594772.5404 | G92: ='""'!G92 -> 85300229.43
A93: ='""'!A93 -> 56 | B93: ='""'!B93 -> 2026-03-15 | C93: ='""'!C93 -> 85300229.43 | D93: ='""'!D93 -> 173408.6228 | E93: ='""'!E93 -> -366289.5876 | F93: ='""'!F93 -> 539698.2104 | G93: ='""'!G93 -> 85666519.02
A94: ='""'!A94 -> 57 | B94: ='""'!B94 -> 2026-04-15 | C94: ='""'!C94 -> 85666519.02 | D94: ='""'!D94 -> 173408.6228 | E94: ='""'!E94 -> -426883.25 | F94: ='""'!F94 -> 600291.8729 | G94: ='""'!G94 -> 86093402.27
A95: ='""'!A95 -> 58 | B95: ='""'!B95 -> 2026-05-15 | C95: ='""'!C95 -> 86093402.27 | D95: ='""'!D95 -> 173408.6228 | E95: ='""'!E95 -> -410347.98 | F95: ='""'!F95 -> 583756.6029 | G95: ='""'!G95 -> 86503750.25
A96: ='""'!A96 -> 59 | B96: ='""'!B96 -> 2026-06-15 | C96: ='""'!C96 -> 86503750.25 | D96: ='""'!D96 -> 173408.6228 | E96: ='""'!E96 -> -432749.989 | F96: ='""'!F96 -> 606158.6118 | G96: ='""'!G96 -> 86936500.23
A97: ='""'!A97 -> 60 | B97: ='""'!B97 -> 2026-07-15 | C97: ='""'!C97 -> 86936500.23 | D97: ='""'!D97 -> 10148408.62 | E97: ='""'!E97 -> 9558935.391 | F97: ='""'!F97 -> 589473.2315 | G97: ='""'!G97 -> 77377564.84
A98: ='""'!A98 ->  | B98: ='""'!B98 -> Összesen | C98: ='""'!C98 ->  | D98: ='""'!D98 -> 20379517.37 | E98: ='""'!E98 -> -10877564.84 | F98: ='""'!F98 -> 31257082.21 | G98: ='""'!G98 -> 
A99: ='""'!A99 ->  | B99: ='""'!B99 ->  | C99: ='""'!C99 ->  | D99: ='""'!D99 ->  | E99: ='""'!E99 ->  | F99: ='""'!F99 ->  | G99: ='""'!G99 -> 
A100: ='""'!A100 ->  | B100: ='""'!B100 ->  | C100: ='""'!C100 ->  | D100: ='""'!D100 ->  | E100: ='""'!E100 ->  | F100: ='""'!F100 ->  | G100: ='""'!G100 -> 
A101: ='""'!A101 ->  | B101: ='""'!B101 ->  | C101: ='""'!C101 ->  | D101: ='""'!D101 ->  | E101: ='""'!E101 ->  | F101: ='""'!F101 ->  | G101: ='""'!G101 -> 
A102: ='""'!A102 ->  | B102: ='""'!B102 ->  | C102: ='""'!C102 ->  | D102: ='""'!D102 ->  | E102: ='""'!E102 ->  | F102: ='""'!F102 ->  | G102: ='""'!G102 -> 
A103: ='""'!A103 ->  | B103: ='""'!B103 ->  | C103: ='""'!C103 ->  | D103: ='""'!D103 ->  | E103: ='""'!E103 ->  | F103: ='""'!F103 ->  | G103: ='""'!G103 -> 
A104: ='""'!A104 ->  | B104: ='""'!B104 ->  | C104: ='""'!C104 ->  | D104: ='""'!D104 ->  | E104: ='""'!E104 ->  | F104: ='""'!F104 ->  | G104: ='""'!G104 -> 
A105: ='""'!A105 ->  | B105: ='""'!B105 ->  | C105: ='""'!C105 ->  | D105: ='""'!D105 ->  | E105: ='""'!E105 ->  | F105: ='""'!F105 ->  | G105: ='""'!G105 -> 
A106: ='""'!A106 ->  | B106: ='""'!B106 ->  | C106: ='""'!C106 ->  | D106: ='""'!D106 ->  | E106: ='""'!E106 ->  | F106: ='""'!F106 ->  | G106: ='""'!G106 -> 
A107: ='""'!A107 ->  | B107: ='""'!B107 ->  | C107: ='""'!C107 ->  | D107: ='""'!D107 ->  | E107: ='""'!E107 ->  | F107: ='""'!F107 ->  | G107: ='""'!G107 -> 
A108: ='""'!A108 ->  | B108: ='""'!B108 ->  | C108: ='""'!C108 ->  | D108: ='""'!D108 ->  | E108: ='""'!E108 ->  | F108: ='""'!F108 ->  | G108: ='""'!G108 -> 
A109: ='""'!A109 ->  | B109: ='""'!B109 ->  | C109: ='""'!C109 ->  | D109: ='""'!D109 ->  | E109: ='""'!E109 ->  | F109: ='""'!F109 ->  | G109: ='""'!G109 -> 
A110: ='""'!A110 ->  | B110: ='""'!B110 ->  | C110: ='""'!C110 ->  | D110: ='""'!D110 ->  | E110: ='""'!E110 ->  | F110: ='""'!F110 ->  | G110: ='""'!G110 -> 
A111: ='""'!A111 ->  | B111: ='""'!B111 ->  | C111: ='""'!C111 ->  | D111: ='""'!D111 ->  | E111: ='""'!E111 ->  | F111: ='""'!F111 ->  | G111: ='""'!G111 -> 
A112: ='""'!A112 ->  | B112: ='""'!B112 ->  | C112: ='""'!C112 ->  | D112: ='""'!D112 ->  | E112: ='""'!E112 ->  | F112: ='""'!F112 ->  | G112: ='""'!G112 -> 
A113: ='""'!A113 ->  | B113: ='""'!B113 ->  | C113: ='""'!C113 ->  | D113: ='""'!D113 ->  | E113: ='""'!E113 ->  | F113: ='""'!F113 ->  | G113: ='""'!G113 -> 
A114: ='""'!A114 ->  | B114: ='""'!B114 ->  | C114: ='""'!C114 ->  | D114: ='""'!D114 ->  | E114: ='""'!E114 ->  | F114: ='""'!F114 ->  | G114: ='""'!G114 -> 
A115: ='""'!A115 ->  | B115: ='""'!B115 ->  | C115: ='""'!C115 ->  | D115: ='""'!D115 ->  | E115: ='""'!E115 ->  | F115: ='""'!F115 ->  | G115: ='""'!G115 -> 
A116: ='""'!A116 ->  | B116: ='""'!B116 ->  | C116: ='""'!C116 ->  | D116: ='""'!D116 ->  | E116: ='""'!E116 ->  | F116: ='""'!F116 ->  | G116: ='""'!G116 -> 
A117: ='""'!A117 ->  | B117: ='""'!B117 ->  | C117: ='""'!C117 ->  | D117: ='""'!D117 ->  | E117: ='""'!E117 ->  | F117: ='""'!F117 ->  | G117: ='""'!G117 -> 
A118: ='""'!A118 ->  | B118: ='""'!B118 ->  | C118: ='""'!C118 ->  | D118: ='""'!D118 ->  | E118: ='""'!E118 ->  | F118: ='""'!F118 ->  | G118: ='""'!G118 -> 
A119: ='""'!A119 ->  | B119: ='""'!B119 ->  | C119: ='""'!C119 ->  | D119: ='""'!D119 ->  | E119: ='""'!E119 ->  | F119: ='""'!F119 ->  | G119: ='""'!G119 -> 
A120: ='""'!A120 ->  | B120: ='""'!B120 ->  | C120: ='""'!C120 ->  | D120: ='""'!D120 ->  | E120: ='""'!E120 ->  | F120: ='""'!F120 ->  | G120: ='""'!G120 -> 
A121: ='""'!A121 ->  | B121: ='""'!B121 ->  | C121: ='""'!C121 ->  | D121: ='""'!D121 ->  | E121: ='""'!E121 ->  | F121: ='""'!F121 ->  | G121: ='""'!G121 -> 
A122: ='""'!A122 ->  | B122: ='""'!B122 ->  | C122: ='""'!C122 ->  | D122: ='""'!D122 ->  | E122: ='""'!E122 ->  | F122: ='""'!F122 ->  | G122: ='""'!G122 -> 
A123: ='""'!A123 ->  | B123: ='""'!B123 ->  | C123: ='""'!C123 ->  | D123: ='""'!D123 ->  | E123: ='""'!E123 ->  | F123: ='""'!F123 ->  | G123: ='""'!G123 -> 
A124: ='""'!A124 ->  | B124: ='""'!B124 ->  | C124: ='""'!C124 ->  | D124: ='""'!D124 ->  | E124: ='""'!E124 ->  | F124: ='""'!F124 ->  | G124: ='""'!G124 -> 
A125: ='""'!A125 ->  | B125: ='""'!B125 ->  | C125: ='""'!C125 ->  | D125: ='""'!D125 ->  | E125: ='""'!E125 ->  | F125: ='""'!F125 ->  | G125: ='""'!G125 -> 
A126: ='""'!A126 ->  | B126: ='""'!B126 ->  | C126: ='""'!C126 ->  | D126: ='""'!D126 ->  | E126: ='""'!E126 ->  | F126: ='""'!F126 ->  | G126: ='""'!G126 -> 
A127: ='""'!A127 ->  | B127: ='""'!B127 ->  | C127: ='""'!C127 ->  | D127: ='""'!D127 ->  | E127: ='""'!E127 ->  | F127: ='""'!F127 ->  | G127: ='""'!G127 -> 
A128: ='""'!A128 ->  | B128: ='""'!B128 ->  | C128: ='""'!C128 ->  | D128: ='""'!D128 ->  | E128: ='""'!E128 ->  | F128: ='""'!F128 ->  | G128: ='""'!G128 -> 
A129: ='""'!A129 ->  | B129: ='""'!B129 ->  | C129: ='""'!C129 ->  | D129: ='""'!D129 ->  | E129: ='""'!E129 ->  | F129: ='""'!F129 ->  | G129: ='""'!G129 -> 
A130: ='""'!A130 ->  | B130: ='""'!B130 ->  | C130: ='""'!C130 ->  | D130: ='""'!D130 ->  | E130: ='""'!E130 ->  | F130: ='""'!F130 ->  | G130: ='""'!G130 -> 
A131: ='""'!A131 ->  | B131: ='""'!B131 ->  | C131: ='""'!C131 ->  | D131: ='""'!D131 ->  | E131: ='""'!E131 ->  | F131: ='""'!F131 ->  | G131: ='""'!G131 -> 
A132: ='""'!A132 ->  | B132: ='""'!B132 ->  | C132: ='""'!C132 ->  | D132: ='""'!D132 ->  | E132: ='""'!E132 ->  | F132: ='""'!F132 ->  | G132: ='""'!G132 -> 
A133: ='""'!A133 ->  | B133: ='""'!B133 ->  | C133: ='""'!C133 ->  | D133: ='""'!D133 ->  | E133: ='""'!E133 ->  | F133: ='""'!F133 ->  | G133: ='""'!G133 -> 
A134: ='""'!A134 ->  | B134: ='""'!B134 ->  | C134: ='""'!C134 ->  | D134: ='""'!D134 ->  | E134: ='""'!E134 ->  | F134: ='""'!F134 ->  | G134: ='""'!G134 -> 
A135: ='""'!A135 ->  | B135: ='""'!B135 ->  | C135: ='""'!C135 ->  | D135: ='""'!D135 ->  | E135: ='""'!E135 ->  | F135: ='""'!F135 ->  | G135: ='""'!G135 -> 
A136: ='""'!A136 ->  | B136: ='""'!B136 ->  | C136: ='""'!C136 ->  | D136: ='""'!D136 ->  | E136: ='""'!E136 ->  | F136: ='""'!F136 ->  | G136: ='""'!G136 -> 
A137: ='""'!A137 ->  | B137: ='""'!B137 ->  | C137: ='""'!C137 ->  | D137: ='""'!D137 ->  | E137: ='""'!E137 ->  | F137: ='""'!F137 ->  | G137: ='""'!G137 -> 
A138: ='""'!A138 ->  | B138: ='""'!B138 ->  | C138: ='""'!C138 ->  | D138: ='""'!D138 ->  | E138: ='""'!E138 ->  | F138: ='""'!F138 ->  | G138: ='""'!G138 -> 
A139: ='""'!A139 ->  | B139: ='""'!B139 ->  | C139: ='""'!C139 ->  | D139: ='""'!D139 ->  | E139: ='""'!E139 ->  | F139: ='""'!F139 ->  | G139: ='""'!G139 -> 
A140: ='""'!A140 ->  | B140: ='""'!B140 ->  | C140: ='""'!C140 ->  | D140: ='""'!D140 ->  | E140: ='""'!E140 ->  | F140: ='""'!F140 ->  | G140: ='""'!G140 -> 
A141: ='""'!A141 ->  | B141: ='""'!B141 ->  | C141: ='""'!C141 ->  | D141: ='""'!D141 ->  | E141: ='""'!E141 ->  | F141: ='""'!F141 ->  | G141: ='""'!G141 -> 
A142: ='""'!A142 ->  | B142: ='""'!B142 ->  | C142: ='""'!C142 ->  | D142: ='""'!D142 ->  | E142: ='""'!E142 ->  | F142: ='""'!F142 ->  | G142: ='""'!G142 -> 
A143: ='""'!A143 ->  | B143: ='""'!B143 ->  | C143: ='""'!C143 ->  | D143: ='""'!D143 ->  | E143: ='""'!E143 ->  | F143: ='""'!F143 ->  | G143: ='""'!G143 -> 
A144: ='""'!A144 ->  | B144: ='""'!B144 ->  | C144: ='""'!C144 ->  | D144: ='""'!D144 ->  | E144: ='""'!E144 ->  | F144: ='""'!F144 ->  | G144: ='""'!G144 -> 
A145: ='""'!A145 ->  | B145: ='""'!B145 ->  | C145: ='""'!C145 ->  | D145: ='""'!D145 ->  | E145: ='""'!E145 ->  | F145: ='""'!F145 ->  | G145: ='""'!G145 -> 
A146: ='""'!A146 ->  | B146: ='""'!B146 ->  | C146: ='""'!C146 ->  | D146: ='""'!D146 ->  | E146: ='""'!E146 ->  | F146: ='""'!F146 ->  | G146: ='""'!G146 -> 
A147: ='""'!A147 ->  | B147: ='""'!B147 ->  | C147: ='""'!C147 ->  | D147: ='""'!D147 ->  | E147: ='""'!E147 ->  | F147: ='""'!F147 ->  | G147: ='""'!G147 -> 
A148: ='""'!A148 ->  | B148: ='""'!B148 ->  | C148: ='""'!C148 ->  | D148: ='""'!D148 ->  | E148: ='""'!E148 ->  | F148: ='""'!F148 ->  | G148: ='""'!G148 -> 
A149: ='""'!A149 ->  | B149: ='""'!B149 ->  | C149: ='""'!C149 ->  | D149: ='""'!D149 ->  | E149: ='""'!E149 ->  | F149: ='""'!F149 ->  | G149: ='""'!G149 -> 
A150: ='""'!A150 ->  | B150: ='""'!B150 ->  | C150: ='""'!C150 ->  | D150: ='""'!D150 ->  | E150: ='""'!E150 ->  | F150: ='""'!F150 ->  | G150: ='""'!G150 -> 
A151: ='""'!A151 ->  | B151: ='""'!B151 ->  | C151: ='""'!C151 ->  | D151: ='""'!D151 ->  | E151: ='""'!E151 ->  | F151: ='""'!F151 ->  | G151: ='""'!G151 -> 
A152: ='""'!A152 ->  | B152: ='""'!B152 ->  | C152: ='""'!C152 ->  | D152: ='""'!D152 ->  | E152: ='""'!E152 ->  | F152: ='""'!F152 ->  | G152: ='""'!G152 -> 
A153: ='""'!A153 ->  | B153: ='""'!B153 ->  | C153: ='""'!C153 ->  | D153: ='""'!D153 ->  | E153: ='""'!E153 ->  | F153: ='""'!F153 ->  | G153: ='""'!G153 -> 
A154: ='""'!A154 ->  | B154: ='""'!B154 ->  | C154: ='""'!C154 ->  | D154: ='""'!D154 ->  | E154: ='""'!E154 ->  | F154: ='""'!F154 ->  | G154: ='""'!G154 -> 
A155: ='""'!A155 ->  | B155: ='""'!B155 ->  | C155: ='""'!C155 ->  | D155: ='""'!D155 ->  | E155: ='""'!E155 ->  | F155: ='""'!F155 ->  | G155: ='""'!G155 -> 
A156: ='""'!A156 ->  | B156: ='""'!B156 ->  | C156: ='""'!C156 ->  | D156: ='""'!D156 ->  | E156: ='""'!E156 ->  | F156: ='""'!F156 ->  | G156: ='""'!G156 -> 
A157: ='""'!A157 ->  | B157: ='""'!B157 ->  | C157: ='""'!C157 ->  | D157: ='""'!D157 ->  | E157: ='""'!E157 ->  | F157: ='""'!F157 ->  | G157: ='""'!G157 -> 
A158: ='""'!A158 ->  | B158: ='""'!B158 ->  | C158: ='""'!C158 ->  | D158: ='""'!D158 ->  | E158: ='""'!E158 ->  | F158: ='""'!F158 ->  | G158: ='""'!G158 -> 
A159: ='""'!A159 ->  | B159: ='""'!B159 ->  | C159: ='""'!C159 ->  | D159: ='""'!D159 ->  | E159: ='""'!E159 ->  | F159: ='""'!F159 ->  | G159: ='""'!G159 -> 
A160: ='""'!A160 ->  | B160: ='""'!B160 ->  | C160: ='""'!C160 ->  | D160: ='""'!D160 ->  | E160: ='""'!E160 ->  | F160: ='""'!F160 ->  | G160: ='""'!G160 -> 
A161: ='""'!A161 ->  | B161: ='""'!B161 ->  | C161: ='""'!C161 ->  | D161: ='""'!D161 ->  | E161: ='""'!E161 ->  | F161: ='""'!F161 ->  | G161: ='""'!G161 -> 
A162: ='""'!A162 ->  | B162: ='""'!B162 ->  | C162: ='""'!C162 ->  | D162: ='""'!D162 ->  | E162: ='""'!E162 ->  | F162: ='""'!F162 ->  | G162: ='""'!G162 -> 
A163: ='""'!A163 ->  | B163: ='""'!B163 ->  | C163: ='""'!C163 ->  | D163: ='""'!D163 ->  | E163: ='""'!E163 ->  | F163: ='""'!F163 ->  | G163: ='""'!G163 -> 
A164: ='""'!A164 ->  | B164: ='""'!B164 ->  | C164: ='""'!C164 ->  | D164: ='""'!D164 ->  | E164: ='""'!E164 ->  | F164: ='""'!F164 ->  | G164: ='""'!G164 -> 
A165: ='""'!A165 ->  | B165: ='""'!B165 ->  | C165: ='""'!C165 ->  | D165: ='""'!D165 ->  | E165: ='""'!E165 ->  | F165: ='""'!F165 ->  | G165: ='""'!G165 -> 
A166: ='""'!A166 ->  | B166: ='""'!B166 ->  | C166: ='""'!C166 ->  | D166: ='""'!D166 ->  | E166: ='""'!E166 ->  | F166: ='""'!F166 ->  | G166: ='""'!G166 -> 
A167: ='""'!A167 ->  | B167: ='""'!B167 ->  | C167: ='""'!C167 ->  | D167: ='""'!D167 ->  | E167: ='""'!E167 ->  | F167: ='""'!F167 ->  | G167: ='""'!G167 -> 
A168: ='""'!A168 ->  | B168: ='""'!B168 ->  | C168: ='""'!C168 ->  | D168: ='""'!D168 ->  | E168: ='""'!E168 ->  | F168: ='""'!F168 ->  | G168: ='""'!G168 -> 
A169: ='""'!A169 ->  | B169: ='""'!B169 ->  | C169: ='""'!C169 ->  | D169: ='""'!D169 ->  | E169: ='""'!E169 ->  | F169: ='""'!F169 ->  | G169: ='""'!G169 -> 
A170: ='""'!A170 ->  | B170: ='""'!B170 ->  | C170: ='""'!C170 ->  | D170: ='""'!D170 ->  | E170: ='""'!E170 ->  | F170: ='""'!F170 ->  | G170: ='""'!G170 -> 
A171: ='""'!A171 ->  | B171: ='""'!B171 ->  | C171: ='""'!C171 ->  | D171: ='""'!D171 ->  | E171: ='""'!E171 ->  | F171: ='""'!F171 ->  | G171: ='""'!G171 -> 
A172: ='""'!A172 ->  | B172: ='""'!B172 ->  | C172: ='""'!C172 ->  | D172: ='""'!D172 ->  | E172: ='""'!E172 ->  | F172: ='""'!F172 ->  | G172: ='""'!G172 -> 
A173: ='""'!A173 ->  | B173: ='""'!B173 ->  | C173: ='""'!C173 ->  | D173: ='""'!D173 ->  | E173: ='""'!E173 ->  | F173: ='""'!F173 ->  | G173: ='""'!G173 -> 
A174: ='""'!A174 ->  | B174: ='""'!B174 ->  | C174: ='""'!C174 ->  | D174: ='""'!D174 ->  | E174: ='""'!E174 ->  | F174: ='""'!F174 ->  | G174: ='""'!G174 -> 
A175: ='""'!A175 ->  | B175: ='""'!B175 ->  | C175: ='""'!C175 ->  | D175: ='""'!D175 ->  | E175: ='""'!E175 ->  | F175: ='""'!F175 ->  | G175: ='""'!G175 -> 
A176: ='""'!A176 ->  | B176: ='""'!B176 ->  | C176: ='""'!C176 ->  | D176: ='""'!D176 ->  | E176: ='""'!E176 ->  | F176: ='""'!F176 ->  | G176: ='""'!G176 -> 
A177: ='""'!A177 ->  | B177: ='""'!B177 ->  | C177: ='""'!C177 ->  | D177: ='""'!D177 ->  | E177: ='""'!E177 ->  | F177: ='""'!F177 ->  | G177: ='""'!G177 -> 
A178: ='""'!A178 ->  | B178: ='""'!B178 ->  | C178: ='""'!C178 ->  | D178: ='""'!D178 ->  | E178: ='""'!E178 ->  | F178: ='""'!F178 ->  | G178: ='""'!G178 -> 
A179: ='""'!A179 ->  | B179: ='""'!B179 ->  | C179: ='""'!C179 ->  | D179: ='""'!D179 ->  | E179: ='""'!E179 ->  | F179: ='""'!F179 ->  | G179: ='""'!G179 -> 
A180: ='""'!A180 ->  | B180: ='""'!B180 ->  | C180: ='""'!C180 ->  | D180: ='""'!D180 ->  | E180: ='""'!E180 ->  | F180: ='""'!F180 ->  | G180: ='""'!G180 -> 
A181: ='""'!A181 ->  | B181: ='""'!B181 ->  | C181: ='""'!C181 ->  | D181: ='""'!D181 ->  | E181: ='""'!E181 ->  | F181: ='""'!F181 ->  | G181: ='""'!G181 -> 
A182: ='""'!A182 ->  | B182: ='""'!B182 ->  | C182: ='""'!C182 ->  | D182: ='""'!D182 ->  | E182: ='""'!E182 ->  | F182: ='""'!F182 ->  | G182: ='""'!G182 -> 
A183: ='""'!A183 ->  | B183: ='""'!B183 ->  | C183: ='""'!C183 ->  | D183: ='""'!D183 ->  | E183: ='""'!E183 ->  | F183: ='""'!F183 ->  | G183: ='""'!G183 -> 
A184: ='""'!A184 ->  | B184: ='""'!B184 ->  | C184: ='""'!C184 ->  | D184: ='""'!D184 ->  | E184: ='""'!E184 ->  | F184: ='""'!F184 ->  | G184: ='""'!G184 -> 
A185: ='""'!A185 ->  | B185: ='""'!B185 ->  | C185: ='""'!C185 ->  | D185: ='""'!D185 ->  | E185: ='""'!E185 ->  | F185: ='""'!F185 ->  | G185: ='""'!G185 -> 
A186: ='""'!A186 ->  | B186: ='""'!B186 ->  | C186: ='""'!C186 ->  | D186: ='""'!D186 ->  | E186: ='""'!E186 ->  | F186: ='""'!F186 ->  | G186: ='""'!G186 -> 
A187: ='""'!A187 ->  | B187: ='""'!B187 ->  | C187: ='""'!C187 ->  | D187: ='""'!D187 ->  | E187: ='""'!E187 ->  | F187: ='""'!F187 ->  | G187: ='""'!G187 -> 
A188: ='""'!A188 ->  | B188: ='""'!B188 ->  | C188: ='""'!C188 ->  | D188: ='""'!D188 ->  | E188: ='""'!E188 ->  | F188: ='""'!F188 ->  | G188: ='""'!G188 -> 
A189: ='""'!A189 ->  | B189: ='""'!B189 ->  | C189: ='""'!C189 ->  | D189: ='""'!D189 ->  | E189: ='""'!E189 ->  | F189: ='""'!F189 ->  | G189: ='""'!G189 -> 
A190: ='""'!A190 ->  | B190: ='""'!B190 ->  | C190: ='""'!C190 ->  | D190: ='""'!D190 ->  | E190: ='""'!E190 ->  | F190: ='""'!F190 ->  | G190: ='""'!G190 -> 
A191: ='""'!A191 ->  | B191: ='""'!B191 ->  | C191: ='""'!C191 ->  | D191: ='""'!D191 ->  | E191: ='""'!E191 ->  | F191: ='""'!F191 ->  | G191: ='""'!G191 -> 
A192: ='""'!A192 ->  | B192: ='""'!B192 ->  | C192: ='""'!C192 ->  | D192: ='""'!D192 ->  | E192: ='""'!E192 ->  | F192: ='""'!F192 ->  | G192: ='""'!G192 -> 
A193: ='""'!A193 ->  | B193: ='""'!B193 ->  | C193: ='""'!C193 ->  | D193: ='""'!D193 ->  | E193: ='""'!E193 ->  | F193: ='""'!F193 ->  | G193: ='""'!G193 -> 
A194: ='""'!A194 ->  | B194: ='""'!B194 ->  | C194: ='""'!C194 ->  | D194: ='""'!D194 ->  | E194: ='""'!E194 ->  | F194: ='""'!F194 ->  | G194: ='""'!G194 -> 
A195: ='""'!A195 ->  | B195: ='""'!B195 ->  | C195: ='""'!C195 ->  | D195: ='""'!D195 ->  | E195: ='""'!E195 ->  | F195: ='""'!F195 ->  | G195: ='""'!G195 -> 
A196: ='""'!A196 ->  | B196: ='""'!B196 ->  | C196: ='""'!C196 ->  | D196: ='""'!D196 ->  | E196: ='""'!E196 ->  | F196: ='""'!F196 ->  | G196: ='""'!G196 -> 
A197: ='""'!A197 ->  | B197: ='""'!B197 ->  | C197: ='""'!C197 ->  | D197: ='""'!D197 ->  | E197: ='""'!E197 ->  | F197: ='""'!F197 ->  | G197: ='""'!G197 -> 
A198: ='""'!A198 ->  | B198: ='""'!B198 ->  | C198: ='""'!C198 ->  | D198: ='""'!D198 ->  | E198: ='""'!E198 ->  | F198: ='""'!F198 ->  | G198: ='""'!G198 -> 
A199: ='""'!A199 ->  | B199: ='""'!B199 ->  | C199: ='""'!C199 ->  | D199: ='""'!D199 ->  | E199: ='""'!E199 ->  | F199: ='""'!F199 ->  | G199: ='""'!G199 -> 
A200: ='""'!A200 ->  | B200: ='""'!B200 ->  | C200: ='""'!C200 ->  | D200: ='""'!D200 ->  | E200: ='""'!E200 ->  | F200: ='""'!F200 ->  | G200: ='""'!G200 -> 
A201: ='""'!A201 ->  | B201: ='""'!B201 ->  | C201: ='""'!C201 ->  | D201: ='""'!D201 ->  | E201: ='""'!E201 ->  | F201: ='""'!F201 ->  | G201: ='""'!G201 -> 
A202: ='""'!A202 ->  | B202: ='""'!B202 ->  | C202: ='""'!C202 ->  | D202: ='""'!D202 ->  | E202: ='""'!E202 ->  | F202: ='""'!F202 ->  | G202: ='""'!G202 -> 
A203: ='""'!A203 ->  | B203: ='""'!B203 ->  | C203: ='""'!C203 ->  | D203: ='""'!D203 ->  | E203: ='""'!E203 ->  | F203: ='""'!F203 ->  | G203: ='""'!G203 -> 
A204: ='""'!A204 ->  | B204: ='""'!B204 ->  | C204: ='""'!C204 ->  | D204: ='""'!D204 ->  | E204: ='""'!E204 ->  | F204: ='""'!F204 ->  | G204: ='""'!G204 -> 
A205: ='""'!A205 ->  | B205: ='""'!B205 ->  | C205: ='""'!C205 ->  | D205: ='""'!D205 ->  | E205: ='""'!E205 ->  | F205: ='""'!F205 ->  | G205: ='""'!G205 -> 
... 134 more rows

Sheet "" (hidden)
B1: Arthur Bergmann Lízing Zrt. - lakáslízing kalkulátor
B2: IGÉNYELT LÍZING PARAMÉTEREI
B3: VISSZLÍZING? | C3: ='Lízing kalkuláció'!C3 -> 
B4: Ingatlan vételára | D4: ='Lízing kalkuláció'!D4 -> 95000000
B5: Saját erő% | D5: ='Lízing kalkuláció'!D5 -> 
B6: Saját erő Ft | D6: ='Lízing kalkuláció'!D6 -> 20000000 | E6: =IF('Lízing kalkuláció'!D6>0,IF('Lízing kalkuláció'!D5>0,IF(D4*D5=D6,"","!"),""),"") -> 
B8: Finanszírozott összeg | D8: =IF(D5>0,D4-D4*D5,D4-D6) -> 75000000
B10: Futamidő (év) | D10: ='Lízing kalkuláció'!D10 -> 5
B11: Maradványérték % | D11: ='Lízing kalkuláció'!D11 -> 0.15
B12: Maradványérték Ft | D12: =D8*D11 -> 11250000
B14: Arthur Bergmann Lízing Zrt.
B15: LAKÁSLÍZING AJÁNLAT PARAMÉTEREI | E15: Termékleírásban szereplő korlátok:
B16: Ingatlan vételára | D16: =MAX($D$4,'kalkulációs feltételek'!$B$20) -> 95000000 | E16: minimum 12.500.000 Ft
B17: Saját erő % | D17: =IF(C3>0,0,IF(D5=0,IF(D6>0,MAX(D6/D16,'kalkulációs feltételek'!B16),MAX($D$5,'kalkulációs feltételek'!$B$16)),MAX($D$5,'kalkulációs feltételek'!$B$16))) -> 0.3 | E17: minimum 30%
B18: Saját erő Ft | D18: =D16*D17 -> 28500000
B19: Lízing finanszírozás összege | D19: =$D$16*(1-$D$17) -> 66500000 | E19: minimum 10.000.000 Ft
B20: Maradványérték % | D20: =MIN('Lízing kalkuláció'!$D$11,VLOOKUP('Lízing kalkuláció'!$D$23,'kalkulációs feltételek'!$A$10:$B$12,2,1)) -> 0.15 | E20: 10 évig maximum 30%, 15 évig maximum 20%, 20 évig maximum 10%
B21: Maradványérték összege | D21: =$D$19*$D$20 -> 9975000
B22: Éves kamatláb* | D22: ='kalkulációs feltételek'!$B$2+VLOOKUP($D$23,'kalkulációs feltételek'!$A$5:$B$7,2,1) -> 0.0825 | E22: ='kalkulációs feltételek'!A2 -> 2020-12-30 | F22: -án érvényes 1 havi BUBOR alapján
B23: Futamidő években | D23: =MIN('Lízing kalkuláció'!$D$10,'kalkulációs feltételek'!$B$14) -> 5
B24: Tervezett folyósítás | D24: =TODAY()+30 -> 2021-07-22 | E24: ajánlat érvényességi dátuma
B26: LÍZING ÁTTEKINTŐ
B27: Havi lízingdíj | D27: =D38 -> 173408.6228 | E27: =IF('segéd'!B3=0,"","Kalkuláció szükséges!") -> Kalkuláció szükséges!
B28: Törlesztések száma | D28: =D23*12 -> 60
B29: Kamat összesen | D29: =VLOOKUP("összesen",$B$38:$F$339,5,0) -> 31257082.21
B30: Futamidő alatt megfizetett lízingdíjak összege | D30: =VLOOKUP("összesen",$B$38:$F$339,3,0) -> 20379517.37
B31: Szerződéskötési díj | D31: =D19*'kalkulációs feltételek'!B22 -> 1330000 | E31: 2%, alapja a finanszírozási összeg
B32: Szerződéskötéskor fizetendő illeték | D32: =D16*'kalkulációs feltételek'!B23 -> 1900000 | E32: 2%, alapja az ingatlan vételára
B33: Ügyvédi díj | D33: =MAX(D16*'kalkulációs feltételek'!B24,'kalkulációs feltételek'!D24) -> 475000 | E33: 0,5%, minimum 100.000 Ft, alapja az ingatlan vételára
B37: Esedékesség dátuma | C37: Nyitó tőketartozás összege | D37: Esedékes lízingdíj (és maradványérték) | E37: Lízingdíj tőkerésze | F37: Lízingdíjban foglalt kamat összege | G37: Záró tőketartozás a befizetést követően
A38: 1 | B38: =VLOOKUP(D24,'kalkulációs feltételek'!$A$27:$B$50,2,1) -> 2021-08-15 | C38: =D19 -> 66500000 | D38: ='Lízing kalkuláció'!D38 -> 173408.6228 | E38: =D38-F38 -> -187070.2283 | F38: =C38*((1+'kalkulációs feltételek'!$A$56)^(B38-D24)-1) -> 360478.8512 | G38: =C38-E38 -> 66687070.23
A39: =IF(A38="","",IF(A38+1<=$D$23*12,A38+1,"")) -> 2 | B39: =IF(A39="",IF(A38 = $D$23*12,"Összesen",""),EDATE(B38,1)) -> 2021-09-15 | C39: =IF($A39="","",G38) -> 66687070.23 | D39: =IF(A39="",IF(A38="","",SUM(D$38:D38)),IF(A39=$D$23*12,D$38+$D$21,D$38)) -> 173408.6228 | E39: =IF($A39="",IF($A38="","",SUM(E$38:E38)),D39-F39) -> -293888.3649 | F39: =IF($A39="",IF($A38="","",SUM(F$38:F38)),C39*((1+'kalkulációs feltételek'!$A$56)^(B39-B38)-1)) -> 467296.9877 | G39: =IF($A39="","",C39-E39) -> 66980958.59
A40: 3 | B40: 2021-10-15 | C40: 66980958.59 | D40: 173408.6228 | E40: -280755.9916 | F40: =IF($A40="",IF($A39="","",SUM(F$38:F39)),C40*((1+'kalkulációs feltételek'!$A$56)^(B40-B39)-1)) -> 454164.6144 | G40: 67261714.58
A41: 4 | B41: 2021-11-15 | C41: 67261714.58 | D41: 173408.6228 | E41: -297915.0761 | F41: =IF($A41="",IF($A40="","",SUM(F$38:F40)),C41*((1+'kalkulációs feltételek'!$A$56)^(B41-B40)-1)) -> 471323.699 | G41: 67559629.66
A42: 5 | B42: 2021-12-15 | C42: 67559629.66 | D42: 173408.6228 | E42: -284679.6727 | F42: =IF($A42="",IF($A41="","",SUM(F$38:F41)),C42*((1+'kalkulációs feltételek'!$A$56)^(B42-B41)-1)) -> 458088.2956 | G42: 67844309.33
A43: 6 | B43: 2022-01-15 | C43: 67844309.33 | D43: 173408.6228 | E43: -301997.4983 | F43: =IF($A43="",IF($A42="","",SUM(F$38:F42)),C43*((1+'kalkulációs feltételek'!$A$56)^(B43-B42)-1)) -> 475406.1211 | G43: 68146306.83
A44: 7 | B44: 2022-02-15 | C44: 68146306.83 | D44: 173408.6228 | E44: -304113.6884 | F44: =IF($A44="",IF($A43="","",SUM(F$38:F43)),C44*((1+'kalkulációs feltételek'!$A$56)^(B44-B43)-1)) -> 477522.3113 | G44: 68450420.52
A45: 8 | B45: 2022-03-15 | C45: 68450420.52 | D45: 173408.6228 | E45: -259680.1239 | F45: =IF($A45="",IF($A44="","",SUM(F$38:F44)),C45*((1+'kalkulációs feltételek'!$A$56)^(B45-B44)-1)) -> 433088.7467 | G45: 68710100.64
A46: 9 | B46: 2022-04-15 | C46: 68710100.64 | D46: 173408.6228 | E46: -308064.3666 | F46: =IF($A46="",IF($A45="","",SUM(F$38:F45)),C46*((1+'kalkulációs feltételek'!$A$56)^(B46-B45)-1)) -> 481472.9894 | G46: 69018165.01
A47: 10 | B47: 2022-05-15 | C47: 69018165.01 | D47: 173408.6228 | E47: -294569.2766 | F47: =IF($A47="",IF($A46="","",SUM(F$38:F46)),C47*((1+'kalkulációs feltételek'!$A$56)^(B47-B46)-1)) -> 467977.8994 | G47: 69312734.29
A48: 11 | B48: 2022-06-15 | C48: 69312734.29 | D48: 173408.6228 | E48: -312287.2074 | F48: =IF($A48="",IF($A47="","",SUM(F$38:F47)),C48*((1+'kalkulációs feltételek'!$A$56)^(B48-B47)-1)) -> 485695.8303 | G48: 69625021.49
A49: 12 | B49: 2022-07-15 | C49: 69625021.49 | D49: 173408.6228 | E49: -298684.069 | F49: =IF($A49="",IF($A48="","",SUM(F$38:F48)),C49*((1+'kalkulációs feltételek'!$A$56)^(B49-B48)-1)) -> 472092.6918 | G49: 69923705.56
A50: 13 | B50: 2022-08-15 | C50: 69923705.56 | D50: 173408.6228 | E50: -316568.4727 | F50: =IF($A50="",IF($A49="","",SUM(F$38:F49)),C50*((1+'kalkulációs feltételek'!$A$56)^(B50-B49)-1)) -> 489977.0955 | G50: 70240274.04
A51: 14 | B51: 2022-09-15 | C51: 70240274.04 | D51: 173408.6228 | E51: -318786.7662 | F51: =IF($A51="",IF($A50="","",SUM(F$38:F50)),C51*((1+'kalkulációs feltételek'!$A$56)^(B51-B50)-1)) -> 492195.389 | G51: 70559060.8
A52: 15 | B52: 2022-10-15 | C52: 70559060.8 | D52: 173408.6228 | E52: -305017.3256 | F52: =IF($A52="",IF($A51="","",SUM(F$38:F51)),C52*((1+'kalkulációs feltételek'!$A$56)^(B52-B51)-1)) -> 478425.9485 | G52: 70864078.13
A53: 16 | B53: 2022-11-15 | C53: 70864078.13 | D53: 173408.6228 | E53: -323157.955 | F53: =IF($A53="",IF($A52="","",SUM(F$38:F52)),C53*((1+'kalkulációs feltételek'!$A$56)^(B53-B52)-1)) -> 496566.5778 | G53: 71187236.08
A54: 17 | B54: 2022-12-15 | C54: 71187236.08 | D54: 173408.6228 | E54: -309276.6702 | F54: =IF($A54="",IF($A53="","",SUM(F$38:F53)),C54*((1+'kalkulációs feltételek'!$A$56)^(B54-B53)-1)) -> 482685.2931 | G54: 71496512.75
A55: 18 | B55: 2023-01-15 | C55: 71496512.75 | D55: 173408.6228 | E55: -327589.6206 | F55: =IF($A55="",IF($A54="","",SUM(F$38:F54)),C55*((1+'kalkulációs feltételek'!$A$56)^(B55-B54)-1)) -> 500998.2434 | G55: 71824102.37
A56: 19 | B56: 2023-02-15 | C56: 71824102.37 | D56: 173408.6228 | E56: -329885.1427 | F56: =IF($A56="",IF($A55="","",SUM(F$38:F55)),C56*((1+'kalkulációs feltételek'!$A$56)^(B56-B55)-1)) -> 503293.7655 | G56: 72153987.52
A57: 20 | B57: 2023-03-15 | C57: 72153987.52 | D57: 173408.6228 | E57: -283112.7511 | F57: =IF($A57="",IF($A56="","",SUM(F$38:F56)),C57*((1+'kalkulációs feltételek'!$A$56)^(B57-B56)-1)) -> 456521.374 | G57: 72437100.27
A58: 21 | B58: 2023-04-15 | C58: 72437100.27 | D58: 173408.6228 | E58: -334180.6091 | F58: =IF($A58="",IF($A57="","",SUM(F$38:F57)),C58*((1+'kalkulációs feltételek'!$A$56)^(B58-B57)-1)) -> 507589.2319 | G58: 72771280.88
A59: 22 | B59: 2023-05-15 | C59: 72771280.88 | D59: 173408.6228 | E59: -320017.2913 | F59: =IF($A59="",IF($A58="","",SUM(F$38:F58)),C59*((1+'kalkulációs feltételek'!$A$56)^(B59-B58)-1)) -> 493425.9141 | G59: 73091298.17
A60: 23 | B60: 2023-06-15 | C60: 73091298.17 | D60: 173408.6228 | E60: -338764.7767 | F60: =IF($A60="",IF($A59="","",SUM(F$38:F59)),C60*((1+'kalkulációs feltételek'!$A$56)^(B60-B59)-1)) -> 512173.3995 | G60: 73430062.94
A61: 24 | B61: 2023-07-15 | C61: 73430062.94 | D61: 173408.6228 | E61: -324484.1653 | F61: =IF($A61="",IF($A60="","",SUM(F$38:F60)),C61*((1+'kalkulációs feltételek'!$A$56)^(B61-B60)-1)) -> 497892.7881 | G61: 73754547.11
A62: 25 | B62: 2023-08-15 | C62: 73754547.11 | D62: 173408.6228 | E62: -343412.3678 | F62: =IF($A62="",IF($A61="","",SUM(F$38:F61)),C62*((1+'kalkulációs feltételek'!$A$56)^(B62-B61)-1)) -> 516820.9906 | G62: 74097959.48
A63: 26 | B63: 2023-09-15 | C63: 74097959.48 | D63: 173408.6228 | E63: -345818.7647 | F63: =IF($A63="",IF($A62="","",SUM(F$38:F62)),C63*((1+'kalkulációs feltételek'!$A$56)^(B63-B62)-1)) -> 519227.3876 | G63: 74443778.24
A64: 27 | B64: 2023-10-15 | C64: 74443778.24 | D64: 173408.6228 | E64: -331357.6653 | F64: =IF($A64="",IF($A63="","",SUM(F$38:F63)),C64*((1+'kalkulációs feltételek'!$A$56)^(B64-B63)-1)) -> 504766.2881 | G64: 74775135.91
A65: 28 | B65: 2023-11-15 | C65: 74775135.91 | D65: 173408.6228 | E65: -350563.9501 | F65: =IF($A65="",IF($A64="","",SUM(F$38:F64)),C65*((1+'kalkulációs feltételek'!$A$56)^(B65-B64)-1)) -> 523972.5729 | G65: 75125699.86
A66: 29 | B66: 2023-12-15 | C66: 75125699.86 | D66: 173408.6228 | E66: -335981.4371 | F66: =IF($A66="",IF($A65="","",SUM(F$38:F65)),C66*((1+'kalkulációs feltételek'!$A$56)^(B66-B65)-1)) -> 509390.0599 | G66: 75461681.3
A67: 30 | B67: 2024-01-15 | C67: 75461681.3 | D67: 173408.6228 | E67: -355374.7866 | F67: =IF($A67="",IF($A66="","",SUM(F$38:F66)),C67*((1+'kalkulációs feltételek'!$A$56)^(B67-B66)-1)) -> 528783.4094 | G67: 75817056.08
A68: 31 | B68: 2024-02-15 | C68: 75817056.08 | D68: 173408.6228 | E68: -357865.0079 | F68: =IF($A68="",IF($A67="","",SUM(F$38:F67)),C68*((1+'kalkulációs feltételek'!$A$56)^(B68-B67)-1)) -> 531273.6308 | G68: 76174921.09
A69: 32 | B69: 2024-03-15 | C69: 76174921.09 | D69: 173408.6228 | E69: -325822.5825 | F69: =IF($A69="",IF($A68="","",SUM(F$38:F68)),C69*((1+'kalkulációs feltételek'!$A$56)^(B69-B68)-1)) -> 499231.2054 | G69: 76500743.67
A70: 33 | B70: 2024-04-15 | C70: 76500743.67 | D70: 173408.6228 | E70: -362655.8189 | F70: =IF($A70="",IF($A69="","",SUM(F$38:F69)),C70*((1+'kalkulációs feltételek'!$A$56)^(B70-B69)-1)) -> 536064.4418 | G70: 76863399.49
A71: 34 | B71: 2024-05-15 | C71: 76863399.49 | D71: 173408.6228 | E71: -347763.9153 | F71: =IF($A71="",IF($A70="","",SUM(F$38:F70)),C71*((1+'kalkulációs feltételek'!$A$56)^(B71-B70)-1)) -> 521172.5381 | G71: 77211163.41
A72: 35 | B72: 2024-06-15 | C72: 77211163.41 | D72: 173408.6228 | E72: -367633.9504 | F72: =IF($A72="",IF($A71="","",SUM(F$38:F71)),C72*((1+'kalkulációs feltételek'!$A$56)^(B72-B71)-1)) -> 541042.5732 | G72: 77578797.36
A73: 36 | B73: 2024-07-15 | C73: 77578797.36 | D73: 173408.6228 | E73: -352614.6729 | F73: =IF($A73="",IF($A72="","",SUM(F$38:F72)),C73*((1+'kalkulációs feltételek'!$A$56)^(B73-B72)-1)) -> 526023.2957 | G73: 77931412.03
A74: 37 | B74: 2024-08-15 | C74: 77931412.03 | D74: 173408.6228 | E74: -372680.9559 | F74: =IF($A74="",IF($A73="","",SUM(F$38:F73)),C74*((1+'kalkulációs feltételek'!$A$56)^(B74-B73)-1)) -> 546089.5788 | G74: 78304092.99
A75: 38 | B75: 2024-09-15 | C75: 78304092.99 | D75: 173408.6228 | E75: -375292.447 | F75: =IF($A75="",IF($A74="","",SUM(F$38:F74)),C75*((1+'kalkulációs feltételek'!$A$56)^(B75-B74)-1)) -> 548701.0698 | G75: 78679385.43
A76: 39 | B76: 2024-10-15 | C76: 78679385.43 | D76: 173408.6228 | E76: -360077.214 | F76: =IF($A76="",IF($A75="","",SUM(F$38:F75)),C76*((1+'kalkulációs feltételek'!$A$56)^(B76-B75)-1)) -> 533485.8369 | G76: 79039462.65
A77: 40 | B77: 2024-11-15 | C77: 79039462.65 | D77: 173408.6228 | E77: -380445.4103 | F77: =IF($A77="",IF($A76="","",SUM(F$38:F76)),C77*((1+'kalkulációs feltételek'!$A$56)^(B77-B76)-1)) -> 553854.0332 | G77: 79419908.06
A78: 41 | B78: 2024-12-15 | C78: 79419908.06 | D78: 173408.6228 | E78: -365098.3302 | F78: =IF($A78="",IF($A77="","",SUM(F$38:F77)),C78*((1+'kalkulációs feltételek'!$A$56)^(B78-B77)-1)) -> 538506.953 | G78: 79785006.39
A79: 42 | B79: 2025-01-15 | C79: 79785006.39 | D79: 173408.6228 | E79: -385669.6666 | F79: =IF($A79="",IF($A78="","",SUM(F$38:F78)),C79*((1+'kalkulációs feltételek'!$A$56)^(B79-B78)-1)) -> 559078.2894 | G79: 80170676.05
A80: 43 | B80: 2025-02-15 | C80: 80170676.05 | D80: 173408.6228 | E80: -388372.1736 | F80: =IF($A80="",IF($A79="","",SUM(F$38:F79)),C80*((1+'kalkulációs feltételek'!$A$56)^(B80-B79)-1)) -> 561780.7964 | G80: 80559048.23
A81: 44 | B81: 2025-03-15 | C81: 80559048.23 | D81: 173408.6228 | E81: -336291.9308 | F81: =IF($A81="",IF($A80="","",SUM(F$38:F80)),C81*((1+'kalkulációs feltételek'!$A$56)^(B81-B80)-1)) -> 509700.5536 | G81: 80895340.16
A82: 45 | B82: 2025-04-15 | C82: 80895340.16 | D82: 173408.6228 | E82: -393450.1197 | F82: =IF($A82="",IF($A81="","",SUM(F$38:F81)),C82*((1+'kalkulációs feltételek'!$A$56)^(B82-B81)-1)) -> 566858.7426 | G82: 81288790.28
A83: 46 | B83: 2025-05-15 | C83: 81288790.28 | D83: 173408.6228 | E83: -377770.2923 | F83: =IF($A83="",IF($A82="","",SUM(F$38:F82)),C83*((1+'kalkulációs feltételek'!$A$56)^(B83-B82)-1)) -> 551178.9152 | G83: 81666560.57
A84: 47 | B84: 2025-06-15 | C84: 81666560.57 | D84: 173408.6228 | E84: -398854.3004 | F84: =IF($A84="",IF($A83="","",SUM(F$38:F83)),C84*((1+'kalkulációs feltételek'!$A$56)^(B84-B83)-1)) -> 572262.9232 | G84: 82065414.87
A85: 48 | B85: 2025-07-15 | C85: 82065414.87 | D85: 173408.6228 | E85: -383036.198 | F85: =IF($A85="",IF($A84="","",SUM(F$38:F84)),C85*((1+'kalkulációs feltételek'!$A$56)^(B85-B84)-1)) -> 556444.8208 | G85: 82448451.07
A86: 49 | B86: 2025-08-15 | C86: 82448451.07 | D86: 173408.6228 | E86: -404333.2497 | F86: =IF($A86="",IF($A85="","",SUM(F$38:F85)),C86*((1+'kalkulációs feltételek'!$A$56)^(B86-B85)-1)) -> 577741.8725 | G86: 82852784.32
A87: 50 | B87: 2025-09-15 | C87: 82852784.32 | D87: 173408.6228 | E87: -407166.5382 | F87: =IF($A87="",IF($A86="","",SUM(F$38:F86)),C87*((1+'kalkulációs feltételek'!$A$56)^(B87-B86)-1)) -> 580575.161 | G87: 83259950.86
A88: 51 | B88: 2025-10-15 | C88: 83259950.86 | D88: 173408.6228 | E88: -391135.7533 | F88: =IF($A88="",IF($A87="","",SUM(F$38:F87)),C88*((1+'kalkulációs feltételek'!$A$56)^(B88-B87)-1)) -> 564544.3761 | G88: 83651086.61
A89: 52 | B89: 2025-11-15 | C89: 83651086.61 | D89: 173408.6228 | E89: -412760.49 | F89: =IF($A89="",IF($A88="","",SUM(F$38:F88)),C89*((1+'kalkulációs feltételek'!$A$56)^(B89-B88)-1)) -> 586169.1128 | G89: 84063847.1
A90: 53 | B90: 2025-12-15 | C90: 84063847.1 | D90: 173408.6228 | E90: -396586.5744 | F90: =IF($A90="",IF($A89="","",SUM(F$38:F89)),C90*((1+'kalkulációs feltételek'!$A$56)^(B90-B89)-1)) -> 569995.1973 | G90: 84460433.67
A91: 54 | B91: 2026-01-15 | C91: 84460433.67 | D91: 173408.6228 | E91: -418431.8359 | F91: =IF($A91="",IF($A90="","",SUM(F$38:F90)),C91*((1+'kalkulációs feltételek'!$A$56)^(B91-B90)-1)) -> 591840.4588 | G91: 84878865.51
A92: 55 | B92: 2026-02-15 | C92: 84878865.51 | D92: 173408.6228 | E92: -421363.9176 | F92: =IF($A92="",IF($A91="","",SUM(F$38:F91)),C92*((1+'kalkulációs feltételek'!$A$56)^(B92-B91)-1)) -> 594772.5404 | G92: 85300229.43
A93: 56 | B93: 2026-03-15 | C93: 85300229.43 | D93: 173408.6228 | E93: -366289.5876 | F93: =IF($A93="",IF($A92="","",SUM(F$38:F92)),C93*((1+'kalkulációs feltételek'!$A$56)^(B93-B92)-1)) -> 539698.2104 | G93: 85666519.02
A94: 57 | B94: 2026-04-15 | C94: 85666519.02 | D94: 173408.6228 | E94: -426883.25 | F94: =IF($A94="",IF($A93="","",SUM(F$38:F93)),C94*((1+'kalkulációs feltételek'!$A$56)^(B94-B93)-1)) -> 600291.8729 | G94: 86093402.27
A95: 58 | B95: 2026-05-15 | C95: 86093402.27 | D95: 173408.6228 | E95: -410347.98 | F95: =IF($A95="",IF($A94="","",SUM(F$38:F94)),C95*((1+'kalkulációs feltételek'!$A$56)^(B95-B94)-1)) -> 583756.6029 | G95: 86503750.25
A96: 59 | B96: 2026-06-15 | C96: 86503750.25 | D96: 173408.6228 | E96: -432749.989 | F96: =IF($A96="",IF($A95="","",SUM(F$38:F95)),C96*((1+'kalkulációs feltételek'!$A$56)^(B96-B95)-1)) -> 606158.6118 | G96: 86936500.23
A97: 60 | B97: 2026-07-15 | C97: 86936500.23 | D97: 10148408.62 | E97: 9558935.391 | F97: =IF($A97="",IF($A96="","",SUM(F$38:F96)),C97*((1+'kalkulációs feltételek'!$A$56)^(B97-B96)-1)) -> 589473.2315 | G97: 77377564.84
B98: Összesen | D98: 20379517.37 | E98: -10877564.84 | F98: =IF($A98="",IF($A97="","",SUM(F$38:F97)),C98*((1+'kalkulációs feltételek'!$A$56)^(B98-B97)-1)) -> 31257082.21
F99: =IF($A99="",IF($A98="","",SUM(F$38:F98)),C99*((1+'kalkulációs feltételek'!$A$56)^(B99-B98)-1)) -> 
F100: =IF($A100="",IF($A99="","",SUM(F$38:F99)),C100*((1+'kalkulációs feltételek'!$A$56)^(B100-B99)-1)) -> 
F101: =IF($A101="",IF($A100="","",SUM(F$38:F100)),C101*((1+'kalkulációs feltételek'!$A$56)^(B101-B100)-1)) -> 
F102: =IF($A102="",IF($A101="","",SUM(F$38:F101)),C102*((1+'kalkulációs feltételek'!$A$56)^(B102-B101)-1)) -> 
F103: =IF($A103="",IF($A102="","",SUM(F$38:F102)),C103*((1+'kalkulációs feltételek'!$A$56)^(B103-B102)-1)) -> 
F104: =IF($A104="",IF($A103="","",SUM(F$38:F103)),C104*((1+'kalkulációs feltételek'!$A$56)^(B104-B103)-1)) -> 
F105: =IF($A105="",IF($A104="","",SUM(F$38:F104)),C105*((1+'kalkulációs feltételek'!$A$56)^(B105-B104)-1)) -> 
F106: =IF($A106="",IF($A105="","",SUM(F$38:F105)),C106*((1+'kalkulációs feltételek'!$A$56)^(B106-B105)-1)) -> 
F107: =IF($A107="",IF($A106="","",SUM(F$38:F106)),C107*((1+'kalkulációs feltételek'!$A$56)^(B107-B106)-1)) -> 
F108: =IF($A108="",IF($A107="","",SUM(F$38:F107)),C108*((1+'kalkulációs feltételek'!$A$56)^(B108-B107)-1)) -> 
F109: =IF($A109="",IF($A108="","",SUM(F$38:F108)),C109*((1+'kalkulációs feltételek'!$A$56)^(B109-B108)-1)) -> 
F110: =IF($A110="",IF($A109="","",SUM(F$38:F109)),C110*((1+'kalkulációs feltételek'!$A$56)^(B110-B109)-1)) -> 
F111: =IF($A111="",IF($A110="","",SUM(F$38:F110)),C111*((1+'kalkulációs feltételek'!$A$56)^(B111-B110)-1)) -> 
F112: =IF($A112="",IF($A111="","",SUM(F$38:F111)),C112*((1+'kalkulációs feltételek'!$A$56)^(B112-B111)-1)) -> 
F113: =IF($A113="",IF($A112="","",SUM(F$38:F112)),C113*((1+'kalkulációs feltételek'!$A$56)^(B113-B112)-1)) -> 
F114: =IF($A114="",IF($A113="","",SUM(F$38:F113)),C114*((1+'kalkulációs feltételek'!$A$56)^(B114-B113)-1)) -> 
F115: =IF($A115="",IF($A114="","",SUM(F$38:F114)),C115*((1+'kalkulációs feltételek'!$A$56)^(B115-B114)-1)) -> 
F116: =IF($A116="",IF($A115="","",SUM(F$38:F115)),C116*((1+'kalkulációs feltételek'!$A$56)^(B116-B115)-1)) -> 
F117: =IF($A117="",IF($A116="","",SUM(F$38:F116)),C117*((1+'kalkulációs feltételek'!$A$56)^(B117-B116)-1)) -> 
F118: =IF($A118="",IF($A117="","",SUM(F$38:F117)),C118*((1+'kalkulációs feltételek'!$A$56)^(B118-B117)-1)) -> 
F119: =IF($A119="",IF($A118="","",SUM(F$38:F118)),C119*((1+'kalkulációs feltételek'!$A$56)^(B119-B118)-1)) -> 
F120: =IF($A120="",IF($A119="","",SUM(F$38:F119)),C120*((1+'kalkulációs feltételek'!$A$56)^(B120-B119)-1)) -> 
F121: =IF($A121="",IF($A120="","",SUM(F$38:F120)),C121*((1+'kalkulációs feltételek'!$A$56)^(B121-B120)-1)) -> 
F122: =IF($A122="",IF($A121="","",SUM(F$38:F121)),C122*((1+'kalkulációs feltételek'!$A$56)^(B122-B121)-1)) -> 
F123: =IF($A123="",IF($A122="","",SUM(F$38:F122)),C123*((1+'kalkulációs feltételek'!$A$56)^(B123-B122)-1)) -> 
F124: =IF($A124="",IF($A123="","",SUM(F$38:F123)),C124*((1+'kalkulációs feltételek'!$A$56)^(B124-B123)-1)) -> 
F125: =IF($A125="",IF($A124="","",SUM(F$38:F124)),C125*((1+'kalkulációs feltételek'!$A$56)^(B125-B124)-1)) -> 
F126: =IF($A126="",IF($A125="","",SUM(F$38:F125)),C126*((1+'kalkulációs feltételek'!$A$56)^(B126-B125)-1)) -> 
F127: =IF($A127="",IF($A126="","",SUM(F$38:F126)),C127*((1+'kalkulációs feltételek'!$A$56)^(B127-B126)-1)) -> 
F128: =IF($A128="",IF($A127="","",SUM(F$38:F127)),C128*((1+'kalkulációs feltételek'!$A$56)^(B128-B127)-1)) -> 
F129: =IF($A129="",IF($A128="","",SUM(F$38:F128)),C129*((1+'kalkulációs feltételek'!$A$56)^(B129-B128)-1)) -> 
F130: =IF($A130="",IF($A129="","",SUM(F$38:F129)),C130*((1+'kalkulációs feltételek'!$A$56)^(B130-B129)-1)) -> 
F131: =IF($A131="",IF($A130="","",SUM(F$38:F130)),C131*((1+'kalkulációs feltételek'!$A$56)^(B131-B130)-1)) -> 
F132: =IF($A132="",IF($A131="","",SUM(F$38:F131)),C132*((1+'kalkulációs feltételek'!$A$56)^(B132-B131)-1)) -> 
F133: =IF($A133="",IF($A132="","",SUM(F$38:F132)),C133*((1+'kalkulációs feltételek'!$A$56)^(B133-B132)-1)) -> 
F134: =IF($A134="",IF($A133="","",SUM(F$38:F133)),C134*((1+'kalkulációs feltételek'!$A$56)^(B134-B133)-1)) -> 
F135: =IF($A135="",IF($A134="","",SUM(F$38:F134)),C135*((1+'kalkulációs feltételek'!$A$56)^(B135-B134)-1)) -> 
F136: =IF($A136="",IF($A135="","",SUM(F$38:F135)),C136*((1+'kalkulációs feltételek'!$A$56)^(B136-B135)-1)) -> 
F137: =IF($A137="",IF($A136="","",SUM(F$38:F136)),C137*((1+'kalkulációs feltételek'!$A$56)^(B137-B136)-1)) -> 
F138: =IF($A138="",IF($A137="","",SUM(F$38:F137)),C138*((1+'kalkulációs feltételek'!$A$56)^(B138-B137)-1)) -> 
F139: =IF($A139="",IF($A138="","",SUM(F$38:F138)),C139*((1+'kalkulációs feltételek'!$A$56)^(B139-B138)-1)) -> 
F140: =IF($A140="",IF($A139="","",SUM(F$38:F139)),C140*((1+'kalkulációs feltételek'!$A$56)^(B140-B139)-1)) -> 
F141: =IF($A141="",IF($A140="","",SUM(F$38:F140)),C141*((1+'kalkulációs feltételek'!$A$56)^(B141-B140)-1)) -> 
F142: =IF($A142="",IF($A141="","",SUM(F$38:F141)),C142*((1+'kalkulációs feltételek'!$A$56)^(B142-B141)-1)) -> 
F143: =IF($A143="",IF($A142="","",SUM(F$38:F142)),C143*((1+'kalkulációs feltételek'!$A$56)^(B143-B142)-1)) -> 
F144: =IF($A144="",IF($A143="","",SUM(F$38:F143)),C144*((1+'kalkulációs feltételek'!$A$56)^(B144-B143)-1)) -> 
F145: =IF($A145="",IF($A144="","",SUM(F$38:F144)),C145*((1+'kalkulációs feltételek'!$A$56)^(B145-B144)-1)) -> 
F146: =IF($A146="",IF($A145="","",SUM(F$38:F145)),C146*((1+'kalkulációs feltételek'!$A$56)^(B146-B145)-1)) -> 
F147: =IF($A147="",IF($A146="","",SUM(F$38:F146)),C147*((1+'kalkulációs feltételek'!$A$56)^(B147-B146)-1)) -> 
F148: =IF($A148="",IF($A147="","",SUM(F$38:F147)),C148*((1+'kalkulációs feltételek'!$A$56)^(B148-B147)-1)) -> 
F149: =IF($A149="",IF($A148="","",SUM(F$38:F148)),C149*((1+'kalkulációs feltételek'!$A$56)^(B149-B148)-1)) -> 
F150: =IF($A150="",IF($A149="","",SUM(F$38:F149)),C150*((1+'kalkulációs feltételek'!$A$56)^(B150-B149)-1)) -> 
F151: =IF($A151="",IF($A150="","",SUM(F$38:F150)),C151*((1+'kalkulációs feltételek'!$A$56)^(B151-B150)-1)) -> 
F152: =IF($A152="",IF($A151="","",SUM(F$38:F151)),C152*((1+'kalkulációs feltételek'!$A$56)^(B152-B151)-1)) -> 
F153: =IF($A153="",IF($A152="","",SUM(F$38:F152)),C153*((1+'kalkulációs feltételek'!$A$56)^(B153-B152)-1)) -> 
F154: =IF($A154="",IF($A153="","",SUM(F$38:F153)),C154*((1+'kalkulációs feltételek'!$A$56)^(B154-B153)-1)) -> 
F155: =IF($A155="",IF($A154="","",SUM(F$38:F154)),C155*((1+'kalkulációs feltételek'!$A$56)^(B155-B154)-1)) -> 
F156: =IF($A156="",IF($A155="","",SUM(F$38:F155)),C156*((1+'kalkulációs feltételek'!$A$56)^(B156-B155)-1)) -> 
F157: =IF($A157="",IF($A156="","",SUM(F$38:F156)),C157*((1+'kalkulációs feltételek'!$A$56)^(B157-B156)-1)) -> 
F158: =IF($A158="",IF($A157="","",SUM(F$38:F157)),C158*((1+'kalkulációs feltételek'!$A$56)^(B158-B157)-1)) -> 
F159: =IF($A159="",IF($A158="","",SUM(F$38:F158)),C159*((1+'kalkulációs feltételek'!$A$56)^(B159-B158)-1)) -> 
F160: =IF($A160="",IF($A159="","",SUM(F$38:F159)),C160*((1+'kalkulációs feltételek'!$A$56)^(B160-B159)-1)) -> 
F161: =IF($A161="",IF($A160="","",SUM(F$38:F160)),C161*((1+'kalkulációs feltételek'!$A$56)^(B161-B160)-1)) -> 
F162: =IF($A162="",IF($A161="","",SUM(F$38:F161)),C162*((1+'kalkulációs feltételek'!$A$56)^(B162-B161)-1)) -> 
F163: =IF($A163="",IF($A162="","",SUM(F$38:F162)),C163*((1+'kalkulációs feltételek'!$A$56)^(B163-B162)-1)) -> 
F164: =IF($A164="",IF($A163="","",SUM(F$38:F163)),C164*((1+'kalkulációs feltételek'!$A$56)^(B164-B163)-1)) -> 
F165: =IF($A165="",IF($A164="","",SUM(F$38:F164)),C165*((1+'kalkulációs feltételek'!$A$56)^(B165-B164)-1)) -> 
F166: =IF($A166="",IF($A165="","",SUM(F$38:F165)),C166*((1+'kalkulációs feltételek'!$A$56)^(B166-B165)-1)) -> 
F167: =IF($A167="",IF($A166="","",SUM(F$38:F166)),C167*((1+'kalkulációs feltételek'!$A$56)^(B167-B166)-1)) -> 
F168: =IF($A168="",IF($A167="","",SUM(F$38:F167)),C168*((1+'kalkulációs feltételek'!$A$56)^(B168-B167)-1)) -> 
F169: =IF($A169="",IF($A168="","",SUM(F$38:F168)),C169*((1+'kalkulációs feltételek'!$A$56)^(B169-B168)-1)) -> 
F170: =IF($A170="",IF($A169="","",SUM(F$38:F169)),C170*((1+'kalkulációs feltételek'!$A$56)^(B170-B169)-1)) -> 
F171: =IF($A171="",IF($A170="","",SUM(F$38:F170)),C171*((1+'kalkulációs feltételek'!$A$56)^(B171-B170)-1)) -> 
F172: =IF($A172="",IF($A171="","",SUM(F$38:F171)),C172*((1+'kalkulációs feltételek'!$A$56)^(B172-B171)-1)) -> 
F173: =IF($A173="",IF($A172="","",SUM(F$38:F172)),C173*((1+'kalkulációs feltételek'!$A$56)^(B173-B172)-1)) -> 
F174: =IF($A174="",IF($A173="","",SUM(F$38:F173)),C174*((1+'kalkulációs feltételek'!$A$56)^(B174-B173)-1)) -> 
F175: =IF($A175="",IF($A174="","",SUM(F$38:F174)),C175*((1+'kalkulációs feltételek'!$A$56)^(B175-B174)-1)) -> 
F176: =IF($A176="",IF($A175="","",SUM(F$38:F175)),C176*((1+'kalkulációs feltételek'!$A$56)^(B176-B175)-1)) -> 
F177: =IF($A177="",IF($A176="","",SUM(F$38:F176)),C177*((1+'kalkulációs feltételek'!$A$56)^(B177-B176)-1)) -> 
F178: =IF($A178="",IF($A177="","",SUM(F$38:F177)),C178*((1+'kalkulációs feltételek'!$A$56)^(B178-B177)-1)) -> 
F179: =IF($A179="",IF($A178="","",SUM(F$38:F178)),C179*((1+'kalkulációs feltételek'!$A$56)^(B179-B178)-1)) -> 
F180: =IF($A180="",IF($A179="","",SUM(F$38:F179)),C180*((1+'kalkulációs feltételek'!$A$56)^(B180-B179)-1)) -> 
F181: =IF($A181="",IF($A180="","",SUM(F$38:F180)),C181*((1+'kalkulációs feltételek'!$A$56)^(B181-B180)-1)) -> 
F182: =IF($A182="",IF($A181="","",SUM(F$38:F181)),C182*((1+'kalkulációs feltételek'!$A$56)^(B182-B181)-1)) -> 
F183: =IF($A183="",IF($A182="","",SUM(F$38:F182)),C183*((1+'kalkulációs feltételek'!$A$56)^(B183-B182)-1)) -> 
F184: =IF($A184="",IF($A183="","",SUM(F$38:F183)),C184*((1+'kalkulációs feltételek'!$A$56)^(B184-B183)-1)) -> 
F185: =IF($A185="",IF($A184="","",SUM(F$38:F184)),C185*((1+'kalkulációs feltételek'!$A$56)^(B185-B184)-1)) -> 
F186: =IF($A186="",IF($A185="","",SUM(F$38:F185)),C186*((1+'kalkulációs feltételek'!$A$56)^(B186-B185)-1)) -> 
F187: =IF($A187="",IF($A186="","",SUM(F$38:F186)),C187*((1+'kalkulációs feltételek'!$A$56)^(B187-B186)-1)) -> 
F188: =IF($A188="",IF($A187="","",SUM(F$38:F187)),C188*((1+'kalkulációs feltételek'!$A$56)^(B188-B187)-1)) -> 
F189: =IF($A189="",IF($A188="","",SUM(F$38:F188)),C189*((1+'kalkulációs feltételek'!$A$56)^(B189-B188)-1)) -> 
F190: =IF($A190="",IF($A189="","",SUM(F$38:F189)),C190*((1+'kalkulációs feltételek'!$A$56)^(B190-B189)-1)) -> 
F191: =IF($A191="",IF($A190="","",SUM(F$38:F190)),C191*((1+'kalkulációs feltételek'!$A$56)^(B191-B190)-1)) -> 
F192: =IF($A192="",IF($A191="","",SUM(F$38:F191)),C192*((1+'kalkulációs feltételek'!$A$56)^(B192-B191)-1)) -> 
F193: =IF($A193="",IF($A192="","",SUM(F$38:F192)),C193*((1+'kalkulációs feltételek'!$A$56)^(B193-B192)-1)) -> 
F194: =IF($A194="",IF($A193="","",SUM(F$38:F193)),C194*((1+'kalkulációs feltételek'!$A$56)^(B194-B193)-1)) -> 
F195: =IF($A195="",IF($A194="","",SUM(F$38:F194)),C195*((1+'kalkulációs feltételek'!$A$56)^(B195-B194)-1)) -> 
F196: =IF($A196="",IF($A195="","",SUM(F$38:F195)),C196*((1+'kalkulációs feltételek'!$A$56)^(B196-B195)-1)) -> 
F197: =IF($A197="",IF($A196="","",SUM(F$38:F196)),C197*((1+'kalkulációs feltételek'!$A$56)^(B197-B196)-1)) -> 
F198: =IF($A198="",IF($A197="","",SUM(F$38:F197)),C198*((1+'kalkulációs feltételek'!$A$56)^(B198-B197)-1)) -> 
F199: =IF($A199="",IF($A198="","",SUM(F$38:F198)),C199*((1+'kalkulációs feltételek'!$A$56)^(B199-B198)-1)) -> 
F200: =IF($A200="",IF($A199="","",SUM(F$38:F199)),C200*((1+'kalkulációs feltételek'!$A$56)^(B200-B199)-1)) -> 
F201: =IF($A201="",IF($A200="","",SUM(F$38:F200)),C201*((1+'kalkulációs feltételek'!$A$56)^(B201-B200)-1)) -> 
F202: =IF($A202="",IF($A201="","",SUM(F$38:F201)),C202*((1+'kalkulációs feltételek'!$A$56)^(B202-B201)-1)) -> 
F203: =IF($A203="",IF($A202="","",SUM(F$38:F202)),C203*((1+'kalkulációs feltételek'!$A$56)^(B203-B202)-1)) -> 
F204: =IF($A204="",IF($A203="","",SUM(F$38:F203)),C204*((1+'kalkulációs feltételek'!$A$56)^(B204-B203)-1)) -> 
F205: =IF($A205="",IF($A204="","",SUM(F$38:F204)),C205*((1+'kalkulációs feltételek'!$A$56)^(B205-B204)-1)) -> 
F206: =IF($A206="",IF($A205="","",SUM(F$38:F205)),C206*((1+'kalkulációs feltételek'!$A$56)^(B206-B205)-1)) -> 
F207: =IF($A207="",IF($A206="","",SUM(F$38:F206)),C207*((1+'kalkulációs feltételek'!$A$56)^(B207-B206)-1)) -> 
... 132 more rows

Sheet kalkulációs feltételek (hidden)
A1: 1 havi BUBOR
A2: 2020-12-30 | B2: 0.0075 | C2: havonta frissítendő a hónap első napját 2 nappal megelőző értékre
A4: Kamatfelár
A5: 0 | B5: 0.075
A6: 10.1 | B6: 0.0775
A7: 15.1 | B7: 0.08
A9: Maradványérték maximum
A10: 0 | B10: 0.3
A11: 10.1 | B11: 0.2
A12: 15.1 | B12: 0.1
A14: Maximális futamidő | B14: 20 | C14: év
A16: Minimum önerő | B16: 0.3
A18: Minimum finanszírozott összeg | B18: 10000000
A20: Minimális vételár (kerekítve) | B20: =ROUNDUP(C20/1000000,1)*1000000 -> 14300000 | C20: =B18/(1-B16) -> 14285714.29
A22: Szerződéskötési díj | B22: 0.02
A23: Illték | B23: 0.02
A24: Ügyvédi díj | B24: 0.005 | C24: minimum: | D24: 100000
A26: Tervezett folyósítás | B26: első törlesztés
A27: 2021-01-01 | B27: 2021-02-15
A28: 2021-02-15 | B28: 2021-03-15
A29: 2021-03-15 | B29: 2021-04-15
A30: 2021-04-15 | B30: 2021-05-15
A31: 2021-05-15 | B31: 2021-06-15
A32: 2021-06-15 | B32: 2021-07-15
A33: 2021-07-15 | B33: 2021-08-15
A34: 2021-08-15 | B34: 2021-09-15
A35: 2021-09-15 | B35: 2021-10-15
A36: 2021-10-15 | B36: 2021-11-15
A37: 2021-11-15 | B37: 2021-12-15
A38: 2021-12-15 | B38: 2022-01-15
A39: 2022-01-15 | B39: 2022-02-15
A40: 2022-02-15 | B40: 2022-03-15
A41: 2022-03-15 | B41: 2022-04-15
A42: 2022-04-15 | B42: 2022-05-15
A43: 2022-05-15 | B43: 2022-06-15
A44: 2022-06-15 | B44: 2022-07-15
A45: 2022-07-15 | B45: 2022-08-15
A46: 2022-08-15 | B46: 2022-09-15
A47: 2022-09-15 | B47: 2022-10-15
A48: 2022-10-15 | B48: 2022-11-15
A49: 2022-11-15 | B49: 2022-12-15
A50: 2022-12-15 | B50: 2023-01-15
A55: napi kamatráta
A56: =((1+'Lízing kalkuláció'!D22/12)^(12/365))-1 -> 0.0002252793425 | B56: ell: | C56: ='Lízing kalkuláció'!D22/12 -> 0.006875
A59: részlet függvény eredménye | B59: =PMT(C56,'Lízing kalkuláció'!D23*12,-'Lízing kalkuláció'!D19,'Lízing kalkuláció'!D21) -> 1221476.25
A61: futamidő végén fennálló tőke | B61: =VLOOKUP('Lízing kalkuláció'!D23*12,'Lízing kalkuláció'!$A$38:$G$339,7,0) -> 77377564.84

Sheet segéd (hidden)
A1: finanszírozott összeg | B1: ='Lízing kalkuláció'!D8 -> 75000000
A2: tőketörlesztés összesen | B2: =ROUND(SUM('Lízing kalkuláció'!$E$38:$E$339)-VLOOKUP("összesen",'Lízing kalkuláció'!$B$38:$E$339,4,0),0) -> -10877565
A3: eltérés | B3: =B1-B2 -> 85877565
